[Event "*** Titled Tuesday Blitz"]
[Site "Chess.com"]
[Date "2020.04.14"]
[Round "1"]
[White "dmosesov"]
[Black "Shant_Sargsyan"]
[Result "0-1"]
[WhiteElo "2504"]
[BlackElo "3051"]
[TimeControl "180+1"]
[EndTime "10:05:51 PDT"]
[Termination "Shant_Sargsyan won by resignation"]

1. d4 {[%clk 0:03:00.9]} 1... Nf6 {[%clk 0:02:59.2]} 2. c4 {[%clk 0:03:00.8]}
2... e6 {[%clk 0:02:58.6]} 3. Nf3 {[%clk 0:03:01]} 3... d5 {[%clk 0:02:58.5]} 4.
Nc3 {[%clk 0:03:01.1]} 4... Nbd7 {[%clk 0:02:58.6]} 5. Qc2 {[%clk 0:02:55.1]}
5... c6 {[%clk 0:02:57.1]} 6. cxd5 {[%clk 0:02:46.3]} 6... exd5 {[%clk
0:02:56.1]} 7. Bf4 {[%clk 0:02:44]} 7... Be7 {[%clk 0:02:54.5]} 8. h3 {[%clk
0:02:43.9]} 8... O-O {[%clk 0:02:54.1]} 9. e3 {[%clk 0:02:44.1]} 9... Re8 {[%clk
0:02:54.5]} 10. Bd3 {[%clk 0:02:43.3]} 10... Nf8 {[%clk 0:02:55.1]} 11. O-O
{[%clk 0:02:42.8]} 11... Bd6 {[%clk 0:02:55.1]} 12. Bxd6 {[%clk 0:02:36.5]}
12... Qxd6 {[%clk 0:02:56]} 13. Ne5 {[%clk 0:02:36.9]} 13... N6d7 {[%clk
0:02:51.3]} 14. Nxd7 {[%clk 0:02:15.3]} 14... Bxd7 {[%clk 0:02:52.2]} 15. a3
{[%clk 0:02:15.8]} 15... a5 {[%clk 0:02:51.1]} 16. Rab1 {[%clk 0:02:15.5]} 16...
Ng6 {[%clk 0:02:50.6]} 17. Bxg6 {[%clk 0:02:06]} 17... hxg6 {[%clk 0:02:48.6]}
18. Qd2 {[%clk 0:01:58.6]} 18... Bf5 {[%clk 0:02:47.5]} 19. Rbc1 {[%clk
0:01:58.3]} 19... g5 {[%clk 0:02:47.1]} 20. Na4 {[%clk 0:01:53.4]} 20... g4
{[%clk 0:02:38.2]} 21. hxg4 {[%clk 0:01:53.2]} 21... Bxg4 {[%clk 0:02:39.1]} 22.
Nc5 {[%clk 0:01:52.4]} 22... Qg6 {[%clk 0:02:32.7]} 23. f3 {[%clk 0:01:48.9]}
23... Bc8 {[%clk 0:02:32.7]} 24. Nd3 {[%clk 0:01:45.6]} 24... Bf5 {[%clk
0:02:29.3]} 25. Nf4 {[%clk 0:01:32.8]} 25... Qd6 {[%clk 0:02:29.1]} 26. Rfe1
{[%clk 0:01:28.6]} 26... g5 {[%clk 0:02:28.5]} 27. Nd3 {[%clk 0:01:26.3]} 27...
f6 {[%clk 0:02:28.4]} 28. Nf2 {[%clk 0:01:13]} 28... Kg7 {[%clk 0:02:21.6]} 29.
e4 {[%clk 0:01:11]} 29... Bg6 {[%clk 0:02:22.1]} 30. e5 {[%clk 0:01:11.1]} 30...
Qe6 {[%clk 0:02:02.7]} 31. exf6+ {[%clk 0:01:09.7]} 31... Qxf6 {[%clk
0:02:03.6]} 32. Ng4 {[%clk 0:01:09.6]} 32... Qf4 {[%clk 0:02:00.4]} 33. Qxf4
{[%clk 0:01:07]} 33... gxf4 {[%clk 0:02:01.3]} 34. Ne5 {[%clk 0:01:07.9]} 34...
Bf5 {[%clk 0:02:01.3]} 35. Kf2 {[%clk 0:01:06.5]} 35... a4 {[%clk 0:02:00.7]}
36. Rh1 {[%clk 0:01:04.5]} 36... Rh8 {[%clk 0:01:58.4]} 37. Rce1 {[%clk
0:00:42.3]} 37... Rxh1 {[%clk 0:01:49.4]} 38. Rxh1 {[%clk 0:00:43.2]} 38... Ra6
{[%clk 0:01:50]} 39. Rh4 {[%clk 0:00:39]} 39... Rb6 {[%clk 0:01:49.4]} 40. Rxf4
{[%clk 0:00:39]} 40... Rxb2+ {[%clk 0:01:49.9]} 41. Kg3 {[%clk 0:00:39.3]} 41...
Be6 {[%clk 0:01:50.1]} 42. Nd3 {[%clk 0:00:31.5]} 42... Ra2 {[%clk 0:01:48.9]}
43. Nc5 {[%clk 0:00:30.2]} 43... Bc8 {[%clk 0:01:48.5]} 44. Nxa4 {[%clk
0:00:29.6]} 44... Rxa3 {[%clk 0:01:48.5]} 45. Nc5 {[%clk 0:00:25.7]} 45... b6
{[%clk 0:01:46.6]} 0-1

[Event "*** Titled Tuesday Blitz"]
[Site "Chess.com"]
[Date "2020.04.14"]
[Round "1"]
[White "MattyDPerrine"]
[Black "Volodar_Murzin"]
[Result "0-1"]
[WhiteElo "2338"]
[BlackElo "2686"]
[TimeControl "180+1"]
[EndTime "10:05:51 PDT"]
[Termination "Volodar_Murzin won by resignation"]

1. Nf3 {[%clk 0:03:00.9]} 1... Nf6 {[%clk 0:02:59.4]} 2. c4 {[%clk 0:02:51.9]}
2... g6 {[%clk 0:02:58.5]} 3. b4 {[%clk 0:02:51.6]} 3... Bg7 {[%clk 0:02:58.4]}
4. Bb2 {[%clk 0:02:52.2]} 4... O-O {[%clk 0:02:58.7]} 5. g3 {[%clk 0:02:52.7]}
5... d6 {[%clk 0:02:57.7]} 6. Bg2 {[%clk 0:02:51.8]} 6... e5 {[%clk 0:02:56.3]}
7. d3 {[%clk 0:02:52.3]} 7... Re8 {[%clk 0:02:51.2]} 8. O-O {[%clk 0:02:52.1]}
8... a5 {[%clk 0:02:45.5]} 9. a3 {[%clk 0:02:48.5]} 9... Nbd7 {[%clk 0:02:43.7]}
10. Nbd2 {[%clk 0:02:29.2]} 10... Qe7 {[%clk 0:02:31.2]} 11. e4 {[%clk
0:02:19.8]} 11... Nf8 {[%clk 0:02:27.2]} 12. h3 {[%clk 0:02:10.2]} 12... h5
{[%clk 0:02:22.1]} 13. c5 {[%clk 0:01:39.4]} 13... Be6 {[%clk 0:02:07]} 14. Qc2
{[%clk 0:01:27]} 14... N6d7 {[%clk 0:01:54.9]} 15. c6 {[%clk 0:00:57.6]} 15...
bxc6 {[%clk 0:01:50.9]} 16. Qxc6 {[%clk 0:00:58.5]} 16... Nb6 {[%clk 0:01:48.2]}
17. Rfc1 {[%clk 0:00:40]} 17... Rec8 {[%clk 0:01:40.2]} 18. bxa5 {[%clk
0:00:15]} 18... Rxa5 {[%clk 0:01:33.6]} 19. Bc3 {[%clk 0:00:15.3]} 19... Rc5
{[%clk 0:01:19.5]} 20. Qb7 {[%clk 0:00:14.5]} 20... Ra8 {[%clk 0:01:08]} 21. Bb4
{[%clk 0:00:11.6]} 21... Bc8 {[%clk 0:01:05.4]} 0-1

[Event "*** Titled Tuesday Blitz"]
[Site "Chess.com"]
[Date "2020.04.14"]
[Round "1"]
[White "VinzentSpitzl"]
[Black "Keaton87"]
[Result "0-1"]
[WhiteElo "2337"]
[BlackElo "2681"]
[TimeControl "180+1"]
[EndTime "10:05:57 PDT"]
[Termination "Keaton87 won by resignation"]

1. e4 {[%clk 0:02:58.3]} 1... c5 {[%clk 0:02:59.9]} 2. Nf3 {[%clk 0:02:58]} 2...
d6 {[%clk 0:03:00.1]} 3. d4 {[%clk 0:02:58.2]} 3... Nf6 {[%clk 0:03:00.3]} 4.
Nc3 {[%clk 0:02:55.9]} 4... cxd4 {[%clk 0:03:00.5]} 5. Nxd4 {[%clk 0:02:56.8]}
5... g6 {[%clk 0:03:00.7]} 6. Be3 {[%clk 0:02:56.6]} 6... Bg7 {[%clk 0:03:01.2]}
7. f3 {[%clk 0:02:56.6]} 7... O-O {[%clk 0:03:01.7]} 8. Qd2 {[%clk 0:02:56.7]}
8... Nc6 {[%clk 0:03:02.3]} 9. O-O-O {[%clk 0:02:56.5]} 9... Nxd4 {[%clk
0:03:00.7]} 10. Bxd4 {[%clk 0:02:56.3]} 10... Be6 {[%clk 0:03:01.4]} 11. g4
{[%clk 0:02:55.6]} 11... Qa5 {[%clk 0:03:01]} 12. Kb1 {[%clk 0:02:55.2]} 12...
Rfc8 {[%clk 0:03:00.7]} 13. h4 {[%clk 0:02:55]} 13... b5 {[%clk 0:02:53.2]} 14.
Nd5 {[%clk 0:02:41.8]} 14... Qxd2 {[%clk 0:02:51]} 15. Nxf6+ {[%clk 0:02:40.8]}
15... Bxf6 {[%clk 0:02:50.1]} 16. Rxd2 {[%clk 0:02:41.1]} 16... Bxd4 {[%clk
0:02:48.8]} 17. Rxd4 {[%clk 0:02:42]} 17... Rab8 {[%clk 0:02:44.5]} 18. Be2
{[%clk 0:02:34.5]} 18... h6 {[%clk 0:02:42.1]} 19. f4 {[%clk 0:02:30.3]} 19...
Bc4 {[%clk 0:02:40.9]} 20. Bxc4 {[%clk 0:02:19.2]} 20... Rxc4 {[%clk 0:02:39.3]}
21. Rxc4 {[%clk 0:02:16.5]} 21... bxc4 {[%clk 0:02:40.2]} 22. c3 {[%clk
0:02:15.6]} 22... Kg7 {[%clk 0:02:38]} 23. g5 {[%clk 0:02:07.4]} 23... Rh8
{[%clk 0:02:32]} 24. Rf1 {[%clk 0:01:27.9]} 24... hxg5 {[%clk 0:02:29.6]} 25.
hxg5 {[%clk 0:01:28.8]} 25... Rh2 {[%clk 0:02:28.9]} 26. a4 {[%clk 0:01:28.8]}
26... Re2 {[%clk 0:02:21.9]} 27. f5 {[%clk 0:01:23.9]} 27... Rxe4 {[%clk
0:02:21.4]} 28. f6+ {[%clk 0:01:24.1]} 28... exf6 {[%clk 0:02:20.9]} 29. Rxf6
{[%clk 0:01:24.1]} 29... Re6 {[%clk 0:02:18.4]} 30. Rf4 {[%clk 0:01:20.9]} 30...
d5 {[%clk 0:02:18.6]} 31. Ka2 {[%clk 0:01:14.8]} 31... Re5 {[%clk 0:02:15.3]}
32. Rg4 {[%clk 0:01:11.8]} 32... f6 {[%clk 0:02:11]} 33. gxf6+ {[%clk
0:01:11.7]} 33... Kxf6 {[%clk 0:02:11.9]} 34. Rg1 {[%clk 0:01:05.4]} 34... g5
{[%clk 0:02:08.9]} 35. Ka3 {[%clk 0:01:02.8]} 35... a5 {[%clk 0:02:08.3]} 36. b4
{[%clk 0:00:58.7]} 36... cxb3 {[%clk 0:02:07.5]} 37. Kxb3 {[%clk 0:00:58.5]}
37... Re4 {[%clk 0:02:01.1]} 38. Rf1+ {[%clk 0:00:53.4]} 38... Rf4 {[%clk
0:01:59.8]} 39. Rh1 {[%clk 0:00:52.3]} 39... g4 {[%clk 0:01:52.8]} 40. Rh8
{[%clk 0:00:49.7]} 40... Rf5 {[%clk 0:01:43.2]} 41. Rf8+ {[%clk 0:00:46.7]}
41... Ke5 {[%clk 0:01:43.2]} 42. Rg8 {[%clk 0:00:45.1]} 42... Kf4 {[%clk
0:01:42.5]} 43. c4 {[%clk 0:00:43.8]} 43... dxc4+ {[%clk 0:01:41.8]} 44. Kxc4
{[%clk 0:00:44.1]} 44... Rg5 {[%clk 0:01:36.7]} 45. Rf8+ {[%clk 0:00:44.3]}
45... Ke3 {[%clk 0:01:36.8]} 46. Re8+ {[%clk 0:00:43.6]} 46... Kd2 {[%clk
0:01:35.9]} 47. Rd8+ {[%clk 0:00:41.1]} 47... Kc2 {[%clk 0:01:35.6]} 48. Rf8
{[%clk 0:00:39.9]} 48... g3 {[%clk 0:01:35.4]} 49. Rf1 {[%clk 0:00:40.3]} 49...
g2 {[%clk 0:01:35.3]} 50. Rg1 {[%clk 0:00:40.8]} 50... Kd2 {[%clk 0:01:35.4]}
51. Kd4 {[%clk 0:00:39.4]} 51... Ke2 {[%clk 0:01:35.7]} 52. Kc4 {[%clk
0:00:39.7]} 52... Kf2 {[%clk 0:01:35.8]} 53. Rxg2+ {[%clk 0:00:37.7]} 53... Kxg2
{[%clk 0:01:35.5]} 0-1

[Event "*** Titled Tuesday Blitz"]
[Site "Chess.com"]
[Date "2020.04.14"]
[Round "1"]
[White "terrapin33"]
[Black "NTBT_DHS"]
[Result "0-1"]
[WhiteElo "2131"]
[BlackElo "2551"]
[TimeControl "180+1"]
[EndTime "10:06:05 PDT"]
[Termination "NTBT_DHS won by resignation"]

1. d4 {[%clk 0:03:00.9]} 1... Nf6 {[%clk 0:03:00]} 2. Bg5 {[%clk 0:02:51.9]}
2... c5 {[%clk 0:02:59.4]} 3. d5 {[%clk 0:02:48.5]} 3... Qb6 {[%clk 0:02:58.8]}
4. Nc3 {[%clk 0:02:31.2]} 4... Qxb2 {[%clk 0:02:56.6]} 5. Bd2 {[%clk 0:02:30.8]}
5... Qb6 {[%clk 0:02:54.1]} 6. e4 {[%clk 0:02:26.7]} 6... e5 {[%clk 0:02:53.3]}
7. dxe6 {[%clk 0:02:23.3]} 7... dxe6 {[%clk 0:02:47.7]} 8. Nf3 {[%clk
0:02:04.7]} 8... a6 {[%clk 0:02:36.5]} 9. Bc4 {[%clk 0:01:53.1]} 9... Nc6 {[%clk
0:02:33.3]} 10. a4 {[%clk 0:01:44]} 10... Be7 {[%clk 0:02:32.2]} 11. O-O {[%clk
0:01:39.1]} 11... O-O {[%clk 0:02:31.6]} 12. e5 {[%clk 0:01:17.1]} 12... Nd7
{[%clk 0:02:26.1]} 13. Re1 {[%clk 0:01:11.3]} 13... Qc7 {[%clk 0:02:26.3]} 14.
Bf4 {[%clk 0:00:48.2]} 14... Rd8 {[%clk 0:02:23]} 15. Qe2 {[%clk 0:00:43.6]}
15... Nf8 {[%clk 0:02:14.6]} 16. Ne4 {[%clk 0:00:39.1]} 16... Ng6 {[%clk
0:02:08.9]} 17. Bg3 {[%clk 0:00:38.9]} 17... Nd4 {[%clk 0:01:53]} 18. Nxd4
{[%clk 0:00:37.2]} 18... Rxd4 {[%clk 0:01:44.4]} 19. Nd6 {[%clk 0:00:26.7]}
19... Nf4 {[%clk 0:01:44.6]} 20. Bxf4 {[%clk 0:00:24.9]} 20... Rxf4 {[%clk
0:01:45.5]} 21. Qe3 {[%clk 0:00:20.5]} 21... Rh4 {[%clk 0:01:42.4]} 22. Rad1
{[%clk 0:00:17]} 22... Bxd6 {[%clk 0:01:37]} 23. exd6 {[%clk 0:00:16.8]} 23...
Qc6 {[%clk 0:01:36]} 24. Qg3 {[%clk 0:00:16.4]} 24... Rxc4 {[%clk 0:01:32.1]}
25. Re5 {[%clk 0:00:12.3]} 25... Bd7 {[%clk 0:01:29.4]} 26. Rg5 {[%clk
0:00:12.1]} 26... g6 {[%clk 0:01:29.8]} 27. h4 {[%clk 0:00:11.5]} 27... Qxa4
{[%clk 0:01:24.8]} 28. h5 {[%clk 0:00:10.7]} 28... Qxc2 {[%clk 0:01:25.3]} 29.
Re1 {[%clk 0:00:09.2]} 29... Re4 {[%clk 0:01:23.7]} 30. Rf1 {[%clk 0:00:08.5]}
30... Rd4 {[%clk 0:01:15.9]} 31. hxg6 {[%clk 0:00:08.8]} 31... hxg6 {[%clk
0:01:16.4]} 0-1

[Event "*** Titled Tuesday Blitz"]
[Site "Chess.com"]
[Date "2020.04.14"]
[Round "1"]
[White "OK97"]
[Black "Reality-Stone"]
[Result "0-1"]
[WhiteElo "2728"]
[BlackElo "2401"]
[TimeControl "180+1"]
[EndTime "10:06:06 PDT"]
[Termination "Reality-Stone won by resignation"]

1. d4 {[%clk 0:03:00.2]} 1... Nf6 {[%clk 0:02:56]} 2. Bg5 {[%clk 0:02:59.4]}
2... d5 {[%clk 0:02:54.5]} 3. e3 {[%clk 0:02:57.7]} 3... c5 {[%clk 0:02:53]} 4.
Nd2 {[%clk 0:02:49.4]} 4... Nc6 {[%clk 0:02:52.5]} 5. c3 {[%clk 0:02:49.7]} 5...
e6 {[%clk 0:02:50.5]} 6. Bd3 {[%clk 0:02:47.6]} 6... h6 {[%clk 0:02:50.3]} 7.
Bh4 {[%clk 0:02:46.2]} 7... Be7 {[%clk 0:02:47.7]} 8. f4 {[%clk 0:02:43]} 8...
b6 {[%clk 0:02:41.9]} 9. Ngf3 {[%clk 0:02:43.1]} 9... Bb7 {[%clk 0:02:41.7]} 10.
Ne5 {[%clk 0:02:41.6]} 10... Nd7 {[%clk 0:02:36.5]} 11. Bxe7 {[%clk 0:02:30.3]}
11... Qxe7 {[%clk 0:02:37.4]} 12. O-O {[%clk 0:02:24.7]} 12... O-O-O {[%clk
0:02:35.7]} 13. Qa4 {[%clk 0:02:22.6]} 13... Ndxe5 {[%clk 0:02:28.9]} 14. fxe5
{[%clk 0:02:22.4]} 14... f5 {[%clk 0:02:16.7]} 15. Bb5 {[%clk 0:02:10.4]} 15...
Qc7 {[%clk 0:02:09.9]} 16. Rac1 {[%clk 0:01:53.9]} 16... Kb8 {[%clk 0:02:07.5]}
17. Qa3 {[%clk 0:01:46.5]} 17... g5 {[%clk 0:02:03.6]} 18. c4 {[%clk 0:01:36.7]}
18... cxd4 {[%clk 0:02:03.1]} 19. cxd5 {[%clk 0:01:17]} 19... Rxd5 {[%clk
0:01:58.7]} 20. Bxc6 {[%clk 0:01:01.7]} 20... Bxc6 {[%clk 0:01:55.5]} 21. Nc4
{[%clk 0:00:52.1]} 21... dxe3 {[%clk 0:01:45.7]} 22. Qxe3 {[%clk 0:00:51.1]}
22... f4 {[%clk 0:01:44.4]} 23. Qa3 {[%clk 0:00:37.5]} 23... Rhd8 {[%clk
0:01:40]} 24. Nd6 {[%clk 0:00:33.9]} 24... Rxe5 {[%clk 0:01:33.2]} 25. Rxc6
{[%clk 0:00:27.2]} 25... Qxc6 {[%clk 0:01:30.9]} 26. Nf7 {[%clk 0:00:27.8]}
26... Re2 {[%clk 0:01:25.9]} 27. Qh3 {[%clk 0:00:23]} 27... Rdd2 {[%clk
0:01:09.3]} 28. Nxh6 {[%clk 0:00:18.1]} 28... Rxg2+ {[%clk 0:01:09.2]} 29. Kh1
{[%clk 0:00:13.4]} 29... Rg3+ {[%clk 0:01:09.2]} 0-1

[Event "*** Titled Tuesday Blitz"]
[Site "Chess.com"]
[Date "2020.04.14"]
[Round "1"]
[White "Angry_Twin"]
[Black "jerry_77"]
[Result "1-0"]
[WhiteElo "2838"]
[BlackElo "2443"]
[TimeControl "180+1"]
[EndTime "10:06:07 PDT"]
[Termination "Angry_Twin won by resignation"]

1. e4 {[%clk 0:03:00.9]} 1... c6 {[%clk 0:02:56.5]} 2. d4 {[%clk 0:03:00.1]}
2... d5 {[%clk 0:02:53.4]} 3. e5 {[%clk 0:03:00.2]} 3... c5 {[%clk 0:02:50.5]}
4. dxc5 {[%clk 0:02:58.7]} 4... Nc6 {[%clk 0:02:50.8]} 5. f4 {[%clk 0:02:58.4]}
5... e6 {[%clk 0:02:38.5]} 6. Be3 {[%clk 0:02:57.9]} 6... Nge7 {[%clk
0:02:38.2]} 7. Nf3 {[%clk 0:02:57.4]} 7... a5 {[%clk 0:02:36.3]} 8. c3 {[%clk
0:02:56.1]} 8... a4 {[%clk 0:02:35.6]} 9. Na3 {[%clk 0:02:41.9]} 9... Nf5 {[%clk
0:02:33.5]} 10. Bf2 {[%clk 0:02:41.6]} 10... b6 {[%clk 0:02:13.9]} 11. cxb6
{[%clk 0:02:34.2]} 11... Bxa3 {[%clk 0:02:13.4]} 12. bxa3 {[%clk 0:02:33.8]}
12... Ba6 {[%clk 0:02:02.4]} 13. Bxa6 {[%clk 0:02:32.4]} 13... Rxa6 {[%clk
0:02:03.3]} 14. O-O {[%clk 0:02:32.7]} 14... O-O {[%clk 0:01:58.6]} 15. Rb1
{[%clk 0:02:31.4]} 15... Qe7 {[%clk 0:01:31.9]} 16. Qd3 {[%clk 0:02:26.9]} 16...
Qb7 {[%clk 0:01:29.5]} 17. Rb5 {[%clk 0:02:22.1]} 17... Na5 {[%clk 0:01:26.7]}
18. Nd2 {[%clk 0:02:16.3]} 18... Rc8 {[%clk 0:01:23.9]} 19. Rfb1 {[%clk
0:02:15.4]} 19... h5 {[%clk 0:01:18.5]} 20. R1b4 {[%clk 0:02:03.9]} 20... Nc6
{[%clk 0:01:13.1]} 21. Rb1 {[%clk 0:01:58.6]} 21... g6 {[%clk 0:01:12]} 22. h3
{[%clk 0:01:56]} 22... Kg7 {[%clk 0:00:59.6]} 23. c4 {[%clk 0:01:49.3]} 23...
dxc4 {[%clk 0:00:43.4]} 24. Nxc4 {[%clk 0:01:50.2]} 24... Rd8 {[%clk 0:00:43.7]}
25. Nd6 {[%clk 0:01:48.8]} 25... Qb8 {[%clk 0:00:25.9]} 26. Qc3 {[%clk
0:01:43.5]} 26... Nce7 {[%clk 0:00:22.3]} 27. b7 {[%clk 0:01:35]} 27... Kg8
{[%clk 0:00:19.5]} 28. Rc1 {[%clk 0:01:26.3]} 28... Nd5 {[%clk 0:00:18.6]} 29.
Qc8 {[%clk 0:01:24.2]} 29... Nxd6 {[%clk 0:00:15.6]} 30. Qxb8 {[%clk 0:01:18.6]}
30... Rxb8 {[%clk 0:00:15]} 31. exd6 {[%clk 0:01:19.5]} 31... Rxd6 {[%clk
0:00:02.4]} 32. Rc8+ {[%clk 0:01:18.6]} 32... Rd8 {[%clk 0:00:03]} 1-0

[Event "*** Titled Tuesday Blitz"]
[Site "Chess.com"]
[Date "2020.04.14"]
[Round "1"]
[White "AquivaRubinstein"]
[Black "TheBigBoss04"]
[Result "0-1"]
[WhiteElo "2399"]
[BlackElo "2766"]
[TimeControl "180+1"]
[EndTime "10:06:08 PDT"]
[Termination "TheBigBoss04 won by resignation"]

1. d4 {[%clk 0:03:00.2]} 1... Nf6 {[%clk 0:02:58.4]} 2. c4 {[%clk 0:03:00]} 2...
e6 {[%clk 0:02:58]} 3. Nf3 {[%clk 0:02:59.3]} 3... d5 {[%clk 0:02:56.3]} 4. Nc3
{[%clk 0:02:59.1]} 4... a6 {[%clk 0:02:56.6]} 5. cxd5 {[%clk 0:02:57.9]} 5...
exd5 {[%clk 0:02:57.5]} 6. Bg5 {[%clk 0:02:57.7]} 6... Be6 {[%clk 0:02:57.4]} 7.
e3 {[%clk 0:02:50]} 7... Nbd7 {[%clk 0:02:57.5]} 8. Rc1 {[%clk 0:02:44.9]} 8...
Bd6 {[%clk 0:02:57.6]} 9. Be2 {[%clk 0:02:41]} 9... c6 {[%clk 0:02:57.8]} 10.
O-O {[%clk 0:02:40.9]} 10... h6 {[%clk 0:02:57.1]} 11. Bh4 {[%clk 0:02:40]}
11... O-O {[%clk 0:02:56.3]} 12. Nd2 {[%clk 0:02:23.6]} 12... Qc7 {[%clk
0:02:45.9]} 13. Bg3 {[%clk 0:02:21.3]} 13... Bxg3 {[%clk 0:02:45]} 14. hxg3
{[%clk 0:02:22.2]} 14... Qd6 {[%clk 0:02:45]} 15. e4 {[%clk 0:02:14.2]} 15...
dxe4 {[%clk 0:02:39.9]} 16. Ndxe4 {[%clk 0:02:15.1]} 16... Qe7 {[%clk
0:02:29.2]} 17. Nxf6+ {[%clk 0:02:06.3]} 17... Nxf6 {[%clk 0:02:28.1]} 18. Re1
{[%clk 0:02:05.9]} 18... Rfd8 {[%clk 0:02:25.3]} 19. Bf3 {[%clk 0:02:02.2]}
19... Qb4 {[%clk 0:02:17.2]} 20. d5 {[%clk 0:01:31]} 20... Nxd5 {[%clk
0:02:13.5]} 21. Nxd5 {[%clk 0:01:29.2]} 21... Bxd5 {[%clk 0:02:13.4]} 22. Bxd5
{[%clk 0:01:29]} 22... Rxd5 {[%clk 0:02:13.9]} 23. Qe2 {[%clk 0:01:29]} 23...
Rd2 {[%clk 0:02:05.2]} 24. Qe7 {[%clk 0:01:27.4]} 24... Qxe7 {[%clk 0:02:04.5]}
25. Rxe7 {[%clk 0:01:26.3]} 25... Rxb2 {[%clk 0:02:05.2]} 26. Rd1 {[%clk
0:01:26.4]} 26... b5 {[%clk 0:01:47.1]} 27. Rdd7 {[%clk 0:01:25.6]} 27... Rf8
{[%clk 0:01:47]} 28. Rc7 {[%clk 0:01:16.5]} 28... Rxa2 {[%clk 0:01:46.3]} 29.
Rxc6 {[%clk 0:01:14]} 29... b4 {[%clk 0:01:42.6]} 30. Ra7 {[%clk 0:01:07.9]}
30... a5 {[%clk 0:01:41.7]} 31. Rca6 {[%clk 0:01:06.9]} 31... Rd8 {[%clk
0:01:10]} 32. Rxa5 {[%clk 0:01:01.8]} 32... Rd1+ {[%clk 0:01:09.7]} 33. Kh2
{[%clk 0:01:01.5]} 33... Rxf2 {[%clk 0:01:10]} 34. Rb5 {[%clk 0:00:54.7]} 34...
Rdd2 {[%clk 0:01:09.3]} 35. Rxb4 {[%clk 0:00:48.3]} 35... Rxg2+ {[%clk 0:01:09]}
36. Kh3 {[%clk 0:00:48.4]} 36... Rh2+ {[%clk 0:01:08.3]} 37. Kg4 {[%clk
0:00:48.2]} 37... Rhf2 {[%clk 0:01:08.7]} 38. Rb8+ {[%clk 0:00:40.7]} 38... Kh7
{[%clk 0:01:08.7]} 39. Rbb7 {[%clk 0:00:41.6]} 39... f5+ {[%clk 0:01:02.3]} 0-1

[Event "*** Titled Tuesday Blitz"]
[Site "Chess.com"]
[Date "2020.04.14"]
[Round "1"]
[White "marianokar"]
[Black "afgano29"]
[Result "0-1"]
[WhiteElo "2361"]
[BlackElo "2709"]
[TimeControl "180+1"]
[EndTime "10:06:08 PDT"]
[Termination "afgano29 won by resignation"]

1. Nf3 {[%clk 0:03:00.8]} 1... Nf6 {[%clk 0:02:59.3]} 2. g3 {[%clk 0:02:59.8]}
2... g6 {[%clk 0:02:57.9]} 3. Bg2 {[%clk 0:02:59.4]} 3... Bg7 {[%clk 0:02:58.4]}
4. d4 {[%clk 0:02:58.3]} 4... d5 {[%clk 0:02:57.8]} 5. O-O {[%clk 0:02:57.8]}
5... O-O {[%clk 0:02:57.1]} 6. c4 {[%clk 0:02:58.4]} 6... dxc4 {[%clk 0:02:58]}
7. Na3 {[%clk 0:02:58.3]} 7... Nc6 {[%clk 0:02:58.1]} 8. Nxc4 {[%clk 0:02:58]}
8... Be6 {[%clk 0:02:58.6]} 9. Nce5 {[%clk 0:02:56.6]} 9... Bd5 {[%clk
0:02:58.5]} 10. b3 {[%clk 0:02:51.5]} 10... a5 {[%clk 0:02:55.4]} 11. Bb2 {[%clk
0:02:50.1]} 11... a4 {[%clk 0:02:55.1]} 12. bxa4 {[%clk 0:02:50.3]} 12... Ra6
{[%clk 0:02:54.3]} 13. Nd3 {[%clk 0:02:10.4]} 13... Qa8 {[%clk 0:02:46.7]} 14.
Nc5 {[%clk 0:01:40.8]} 14... Ra7 {[%clk 0:02:44.4]} 15. Re1 {[%clk 0:01:29.9]}
15... b6 {[%clk 0:02:05.2]} 16. e4 {[%clk 0:01:14.2]} 16... bxc5 {[%clk
0:02:05.1]} 17. exd5 {[%clk 0:01:14.1]} 17... Nxd5 {[%clk 0:02:06]} 18. Ne5
{[%clk 0:01:14]} 18... Nxd4 {[%clk 0:01:45.1]} 19. Bxd4 {[%clk 0:00:50.5]} 19...
cxd4 {[%clk 0:01:46]} 20. Qxd4 {[%clk 0:00:51]} 20... e6 {[%clk 0:01:37.8]} 21.
Bxd5 {[%clk 0:00:12.8]} 21... exd5 {[%clk 0:01:38.7]} 22. Qc5 {[%clk 0:00:13.2]}
22... Rxa4 {[%clk 0:01:20]} 23. Qxc7 {[%clk 0:00:11.4]} 23... Rxa2 {[%clk
0:01:10.5]} 24. Rxa2 {[%clk 0:00:11]} 24... Qxa2 {[%clk 0:01:11.4]} 25. Rd1
{[%clk 0:00:08.1]} 25... Qe2 {[%clk 0:01:06.7]} 26. Rxd5 {[%clk 0:00:03.3]}
26... Qe1+ {[%clk 0:01:06.9]} 27. Kg2 {[%clk 0:00:03.9]} 27... Qe4+ {[%clk
0:01:07.8]} 0-1

[Event "*** Titled Tuesday Blitz"]
[Site "Chess.com"]
[Date "2020.04.14"]
[Round "1"]
[White "Dare-Dare"]
[Black "11kevin"]
[Result "1-0"]
[WhiteElo "2189"]
[BlackElo "2547"]
[TimeControl "180+1"]
[EndTime "10:06:09 PDT"]
[Termination "Dare-Dare won by checkmate"]

1. Nf3 {[%clk 0:03:00.3]} 1... Nf6 {[%clk 0:02:58.8]} 2. c4 {[%clk 0:02:59.9]}
2... e6 {[%clk 0:02:57.6]} 3. e3 {[%clk 0:02:57.4]} 3... d5 {[%clk 0:02:54.4]}
4. Nc3 {[%clk 0:02:55.7]} 4... Be7 {[%clk 0:02:53.7]} 5. b3 {[%clk 0:02:55.5]}
5... O-O {[%clk 0:02:53.2]} 6. Bb2 {[%clk 0:02:56]} 6... c5 {[%clk 0:02:52.7]}
7. cxd5 {[%clk 0:02:55.8]} 7... exd5 {[%clk 0:02:52.3]} 8. d4 {[%clk 0:02:56]}
8... Nc6 {[%clk 0:02:51.7]} 9. Be2 {[%clk 0:02:56]} 9... Bg4 {[%clk 0:02:51.1]}
10. dxc5 {[%clk 0:02:52.1]} 10... Bxc5 {[%clk 0:02:50.3]} 11. O-O {[%clk
0:02:52.2]} 11... Rc8 {[%clk 0:02:43.9]} 12. Rc1 {[%clk 0:02:48.7]} 12... Qe7
{[%clk 0:02:42.4]} 13. Nxd5 {[%clk 0:02:27.5]} 13... Nxd5 {[%clk 0:02:36]} 14.
Qxd5 {[%clk 0:02:28.4]} 14... Nb4 {[%clk 0:02:33.2]} 15. Qc4 {[%clk 0:01:52.3]}
15... Be6 {[%clk 0:02:18.3]} 16. Qf4 {[%clk 0:01:39.6]} 16... Nxa2 {[%clk
0:02:05.3]} 17. Ra1 {[%clk 0:01:37.3]} 17... Nb4 {[%clk 0:02:03.1]} 18. Nd4
{[%clk 0:01:20.5]} 18... Bd6 {[%clk 0:01:45.7]} 19. Qe4 {[%clk 0:01:18.1]} 19...
a6 {[%clk 0:01:22]} 20. Nxe6 {[%clk 0:01:11]} 20... fxe6 {[%clk 0:01:22.5]} 21.
Bc4 {[%clk 0:01:09.9]} 21... Nd5 {[%clk 0:01:16.4]} 22. Bxd5 {[%clk 0:01:05.6]}
22... exd5 {[%clk 0:01:17.3]} 23. Qxd5+ {[%clk 0:01:05.5]} 23... Kh8 {[%clk
0:01:17.3]} 24. Rac1 {[%clk 0:01:02.8]} 24... Rcd8 {[%clk 0:01:13.9]} 25. Qh5
{[%clk 0:00:48]} 25... Qe6 {[%clk 0:01:09.3]} 26. Qg5 {[%clk 0:00:20.7]} 26...
Rd7 {[%clk 0:01:06]} 27. Rc4 {[%clk 0:00:20.4]} 27... Rdf7 {[%clk 0:01:00.2]}
28. Rg4 {[%clk 0:00:19.9]} 28... Be7 {[%clk 0:00:53.6]} 29. Bxg7+ {[%clk
0:00:18.9]} 29... Kg8 {[%clk 0:00:53.7]} 30. Bf6+ {[%clk 0:00:19.2]} 30... Rg7
{[%clk 0:00:50.9]} 31. Qxg7# {[%clk 0:00:19.4]} 1-0